Cogmind - Beta 16 @@@ ROGUE MODE // 2025.10.25 @ 00:40:54 Player: cptwinky Result: Self-destructed Performance ------------- Evolutions (8) 4000 Regions Visited (26) 5200 Robots Destroyed (189) 945 Value Destroyed (6225) 6225 Prototype IDs (56) 1120 Alien Tech Used (2) 400 Bonus (2357) 2357 TOTAL SCORE: 20247 Bonus ------- High Alert Combat Kills 51 Follower Combat Kills 906 Registered with UFD 300 Met Optimus in HQ 500 Met Data Miner 300 Met Zhirov 300 Cogmind --------- Core Integrity 1142/1450 Matter 285/300 Energy 100/100 System Corruption 0% Temperature Cool (0) Movement Flying (32) Location -2/Research Parts ------- > --- POWER (3) -------- (None) > --- PROPULSION (8) --- Cooled Impulse Thruster > --- UTILITY (10) ----- Advanced Cooling System Long-range Sensor Array Advanced Signal Interpreter Jamming Amplifier Advanced Hacking Suite Authchip [Propulsion] > --- WEAPON (2) ------- (None) > --- INVENTORY (5) ---- Advanced Component Analysis Suite Dimensional Node Initializer Supercharged TR Terrabomb Hypervelocity Gauss Cannon Peak State ------------ > --- POWER ------------ Light Antimatter Reactor Micro Antimatter Reactor > --- PROPULSION ------- Cooled Field Propulsion Drive Field Propulsion Array Improved Diametric Drive Cooled Impulse Thruster Impulse Thruster Array > --- UTILITY ---------- Experimental Thermal Generator Advanced Cooling System Medium Storage Unit Weight Redist. System Long-range Sensor Array Advanced Signal Interpreter Transmission Jammer Advanced Hacking Suite Improved System Shield Mini Drone Bay > --- WEAPON ----------- Gravity Flail > --- INVENTORY -------- Antigrav Array Cooled Field Propulsion Drive Advanced Energy Well Authchip [Propulsion] Dimensional Node Initializer Supercharged TR Terrabomb Matter Neutralizer Hypervelocity Gauss Cannon [Rating: 139] Favorites ----------- Power Micro Fission Core Engine Heavy Ion Engine Power Core Micro Fission Core Reactor Micro Antimatter Reactor Propulsion Improved Flight Unit Treads Improved Treads Leg Enhanced Biometal Leg Wheel Wheel Hover Unit Antigrav Array Flight Unit Improved Flight Unit Utility Improved Hacking Suite Device Long-range Sensor Array Storage Medium Storage Unit Processor Advanced Signal Interpreter Hackware Improved Hacking Suite Protection Light Armor Plating Weapon Improved Assault Rifle Energy Gun Beam Rifle Energy Cannon Heavy Ion Cannon Ballistic Gun Improved Assault Rifle Ballistic Cannon Hypervelocity Gauss Cannon Launcher Mini Grenade Launcher Special Weapon Improved Remote Datajack Impact Weapon Power Maul Slashing Weapon Greatsword Piercing Weapon Heavy Pick Special Melee Weapon Improved Datajack Build | -11 -10 -10 -9 -9 -9 -9 -6 -6 -6 -6 -6 -6 -5 -5 -5 -5 -5 -4 -4 -4 -4 -4 -3 -3 -3 -2 ------- Run | Yrd Mat Min Mat Sto Rec Scr Fac Was Fac Low Low Dat Pro Fac Upp Upp War Pro Fac Upp Upp Zhi Pro Res Qua Res Slots Evolved 16 | . . . 2 . . . 6 . . . . . . 2 . . . . 2 . . . . 2 . 2 Power 2 | . . . . . . . 1 . . . . . . . . . . . . . . . . . . 1 Propulsion 6 | . . . 1 . . . 2 . . . . . . 1 . . . . . . . . . 1 . 1 Utility 8 | . . . 1 . . . 3 . . . . . . 1 . . . . 2 . . . . 1 . . Weapon . | . . . . . . . . . . . . . . . . . . . . . . . . . . . Parts Attached 159 | 6 3 6 17 12 2 7 26 5 16 1 6 . 2 5 2 . 4 1 9 1 . 3 1 6 13 5 Power 25 | 1 . 2 1 3 . . 4 2 3 . . . 1 2 1 . 1 . . . . 1 . 1 2 . Engine 11 | 1 . 1 1 3 . . 2 1 1 . . . 1 . . . . . . . . . . . . . Core 8 | . . 1 . . . . 2 1 2 . . . . 1 1 . . . . . . . . . . . Reactor 6 | . . . . . . . . . . . . . . 1 . . 1 . . . . 1 . 1 2 . Propulsion 34 | 2 . 1 6 3 . 1 5 1 2 . . . . 1 . . 2 . 2 . . . . 1 5 2 Treads 12 | 2 . 1 6 3 . . . . . . . . . . . . . . . . . . . . . . Leg 1 | . . . . . . . . . . . . . . . . . 1 . . . . . . . . . Wheel 1 | . . . . . . 1 . . . . . . . . . . . . . . . . . . . . Hover 3 | . . . . . . . . . . . . . . . . . 1 . . . . . . . 1 1 Flight 17 | . . . . . . . 5 1 2 . . . . 1 . . . . 2 . . . . 1 4 1 Utility 65 | 1 1 1 6 2 1 4 15 1 7 1 1 . 1 2 . . 1 1 5 . . 2 1 2 6 3 Device 23 | . . 1 . . . 1 7 1 2 1 . . . . . . 1 . 2 . . . . 1 6 . Storage 7 | 1 . . 2 . . . 1 . . . . . . . . . . 1 . . . 1 . . . 1 Processor 10 | . . . . . . 1 2 . 1 . 1 . . 1 . . . . 3 . . . . . . 1 Hackware 12 | . . . . . . . 4 . 4 . . . . 1 . . . . . . . 1 . 1 . 1 Protection 13 | . 1 . 4 2 1 2 1 . . . . . 1 . . . . . . . . . 1 . . . Artifact . | . . . . . . . . . . . . . . . . . . . . . . . . . . . Weapon 35 | 2 2 2 4 4 1 2 2 1 4 . 5 . . . 1 . . . 2 1 . . . 2 . . Energy Gun 7 | 1 . 2 2 . . . . . . . 1 . . . . . . . . 1 . . . . . . Energy Cannon 3 | . . . . . . 1 . . . . 1 . . . . . . . . . . . . 1 . . Ballistic Gun 9 | 1 1 . 1 4 1 . 1 . . . . . . . . . . . . . . . . . . . Ballistic Cannon 1 | . . . . . . . . . . . . . . . 1 . . . . . . . . . . . Launcher 4 | . . . . . . 1 . . 2 . . . . . . . . . . . . . . 1 . . Special Weapon 2 | . 1 . . . . . . . . . . . . . . . . . 1 . . . . . . . Impact Weapon 4 | . . . 1 . . . . . 2 . . . . . . . . . 1 . . . . . . . Slashing Weapon 2 | . . . . . . . 1 . . . 1 . . . . . . . . . . . . . . . Piercing Weapon 2 | . . . . . . . . . . . 2 . . . . . . . . . . . . . . . Special Melee Weapon 1 | . . . . . . . . 1 . . . . . . . . . . . . . . . . . . Unidentified Prototypes 20 | . . . 2 1 . . 1 1 . . . . . 1 . . 4 . 2 . . 3 . . 4 1 Parts Lost 44 | . . 1 1 4 . . 9 . 7 . 1 . 1 . . . . . . . . . . 10 3 7 Power 7 | . . . . 1 . . 2 . 1 . . . . . . . . . . . . . . 2 . 1 Propulsion 14 | . . . . 2 . . 4 . 2 . . . 1 . . . . . . . . . . . 2 3 Utility 19 | . . 1 . 1 . . 3 . 3 . 1 . . . . . . . . . . . . 6 1 3 Weapon 4 | . . . 1 . . . . . 1 . . . . . . . . . . . . . . 2 . . Highest Loss Streak 10 | . . 1 1 1 . . 6 . 2 . 1 . 1 . . . . . . . . . . 10 1 7 To Critical Strikes 3 | . . . . 1 . . 1 . . . . . . . . . . . . . . . . . . 1 Average Backups 12 | 4 7 7 15 19 20 19 11 9 8 9 9 10 9 8 10 10 10 10 9 10 10 9 10 9 9 8 Power 1 | . 1 1 1 1 2 1 . 1 . 1 1 1 1 1 1 1 1 1 1 1 1 . . . . . Propulsion 2 | 2 2 1 3 6 6 6 1 . . . . . . . . . . . . . . . . . 1 . Utility 6 | . 2 3 6 9 9 9 5 4 4 5 5 5 5 4 6 6 6 6 5 6 5 4 5 4 3 2 Weapon 2 | . 2 2 3 2 3 2 2 2 1 3 3 4 3 3 3 3 3 3 2 3 3 3 3 3 2 2 Tool/Special . | . . . . . . . . . . . . . . . . . . . . . . . . . . . Unused Backups 32 | . 3 1 7 2 . 1 9 . . . . . . . . . . . . . 1 . . 1 4 3 Power 2 | . . . 1 . . . 1 . . . . . . . . . . . . . . . . . . . Propulsion 8 | . 3 1 3 . . . . . . . . . . . . . . . . . . . . . 1 . Utility 14 | . . . 1 1 . 1 6 . . . . . . . . . . . . . 1 . . 1 2 1 Weapon 4 | . . . 2 1 . . 1 . . . . . . . . . . . . . . . . . . . Tool/Special 4 | . . . . . . . 1 . . . . . . . . . . . . . . . . . 1 2 Average Slot Usage (%) 88 | . 96 94 96 97 97 90 84 94 95 86 84 82 78 71 81 82 81 82 87 89 89 88 89 81 70 66 Engine 4 | . 14 9 5 10 11 . 2 11 10 . . . 6 . . . . . . . . . . . 1 2 Core 5 | . . 4 5 . . 10 3 . 1 6 6 6 . 4 10 11 10 11 10 10 10 10 10 8 . . Treads 13 | . 28 28 33 33 33 29 6 . . . . . . . . . . . . . . . . . . . Flight 14 | . . . . . . . 22 32 31 26 26 26 21 18 23 23 23 23 21 21 21 21 21 18 20 16 Device 8 | . . . 11 11 11 9 4 4 5 13 8 6 4 4 5 5 5 5 12 14 14 11 10 12 17 19 Storage 7 | . 14 14 11 11 11 11 6 6 6 6 6 6 6 5 5 5 5 5 5 5 5 5 5 4 4 4 Processor 3 | . . . . . . . 5 6 6 6 9 13 13 6 5 5 5 5 10 10 10 7 5 4 4 5 Hackware 9 | . . . . . . . 15 20 19 13 13 13 13 15 17 17 17 17 15 15 15 17 21 18 9 8 Protection 5 | . 10 8 8 9 11 12 4 1 . . . . 1 5 5 5 5 4 1 . . 2 5 3 . . Energy Gun 2 | . 14 13 10 2 . . . . . . . . . . . . . . . . . . . . . . Ballistic Gun 4 | . 14 14 11 18 16 . . . . . . . . . . . . . . . . . . . . . Impact Weapon 3 | . . . . . 2 8 1 2 5 6 3 . . . 4 4 5 4 5 2 4 5 2 3 3 3 Peak Build Rating 139 | 6 8 13 25 25 24 23 56 66 76 76 76 76 73 90 89 90 97 94 121 121 122 125 123 130 139 139 Average Rating 57 | 5 6 8 19 23 22 20 41 55 60 75 73 71 66 73 88 89 88 89 110 119 120 119 120 123 119 116 On Entrance 67 | . 6 8 13 24 24 20 22 52 55 73 74 76 76 60 84 89 89 89 89 114 114 122 118 123 81 125 Avg Prop Armor Cover (%) 14 | . . . . . . 16 18 . 4 . . . . . . . . . . . . . . . 5 8 Naked Turns . | . . . . . . . . . . . . . . . . . . . . . . . . . . . Heaviest Build 66 | 10 14 16 62 62 58 64 66 26 33 33 33 32 30 31 31 30 55 34 41 41 41 44 43 41 59 46 Greatest Support 69 | 40 40 40 69 69 66 66 66 31 32 32 32 32 32 40 40 42 40 40 45 45 45 45 45 56 60 54 Greatest Overweight (x) 6 | . . . . . . 6 6 1 1 1 1 . . . . . 1 . . . . . . . 1 2 Average Overweight (x) . | . . . . . . 1 . . . . . . . . . . . . . . . . . . . . Largest Inventory Capacity 20 | 8 8 8 20 20 20 20 20 10 10 10 10 10 10 10 10 10 10 15 10 10 10 10 10 10 10 10 Average Capacity 13 | 7 8 8 17 20 20 20 13 10 10 10 10 10 10 10 10 10 10 10 10 10 10 10 10 10 10 9 Most Carried 20 | 8 8 8 20 20 20 20 20 10 10 10 10 10 10 10 10 10 10 10 10 10 10 10 10 10 10 10 Average Carried 12 | 4 7 7 15 19 19 19 11 9 9 9 9 10 9 8 10 10 10 10 9 10 9 9 10 9 9 9 Final Capacity 20 | 8 8 8 20 20 20 20 10 10 10 10 10 10 10 10 10 10 10 10 10 10 10 10 10 10 10 5 Final Carried 20 | 8 8 7 20 20 20 19 9 10 9 9 10 10 10 10 10 10 10 10 10 10 10 10 10 10 9 5 Class Distribution -------------------- 49% | Hacker-Sprinter 18% | Mutant 18% | Commander-Mutant 6% | Hacker-Mutant 5% | Scavenger-Mutant Dominant Class ---------------- Mutant | -10/Materials Mutant | -10/Mines Scavenger-Mutant | -9/Materials Mutant | -9/Storage Commander-Mutant | -9/Recycling Commander-Mutant | -9/Scraptown Hacker-Sprinter | -6/Factory Hacker-Sprinter | -6/Waste Hacker-Sprinter | -6/Factory Hacker-Sprinter | -6/Lower Caves Hacker-Sprinter | -6/Lower Caves Hacker-Sprinter | -6/Data Miner Hacker-Mutant | -5/Proximity Caves Hacker-Mutant | -5/Factory Hacker-Sprinter | -5/Upper Caves Hacker-Sprinter | -5/Upper Caves Hacker-Sprinter | -5/Warlord Hacker-Sprinter | -4/Proximity Caves Hacker-Sprinter | -4/Factory Hacker-Sprinter | -4/Upper Caves Hacker-Sprinter | -4/Upper Caves Hacker-Sprinter | -4/Zhirov Hacker-Sprinter | -3/Proximity Caves Hacker-Sprinter | -3/Research Hacker-Sprinter | -3/Quarantine Hacker-Mutant | -2/Research Resources | -11 -10 -10 -9 -9 -9 -9 -6 -6 -6 -6 -6 -6 -5 -5 -5 -5 -5 -4 -4 -4 -4 -4 -3 -3 -3 -2 ----------- Run | Yrd Mat Min Mat Sto Rec Scr Fac Was Fac Low Low Dat Pro Fac Upp Upp War Pro Fac Upp Upp Zhi Pro Res Qua Res Matter Collected 6127 | 266 225 214 381 726 118 86 724 150 712 49 330 . 135 35 61 159 57 203 301 356 86 98 80 181 206 188 Remotely . | . . . . . . . . . . . . . . . . . . . . . . . . . . . Salvage Created 7966 | 101 436 167 1071 1625 86 . 785 . 896 . 311 . 184 35 41 223 . 103 729 87 107 104 48 291 296 240 Parts 308 | 7 21 13 53 95 2 . 34 . 12 . 6 . 4 2 2 1 . 6 12 13 3 . 1 15 4 2 Haulers Intercepted 19 | . 1 . 4 6 . . 2 . 2 . . . . . . . . . 2 . . . . 1 1 . Recyclers Shooed 11 | . 2 1 4 . 1 . 1 . 1 . . . . . . . . . . . . . . 1 . . Parts Field Recycled . | . . . . . . . . . . . . . . . . . . . . . . . . . . . Retrieved Matter . | . . . . . . . . . . . . . . . . . . . . . . . . . . . Parts Self-Destructed 41 | . . . . . . . . . . 3 5 . 3 . 1 . . 17 . 7 2 . 3 . . . Prevented 6 | . . . . . . . . . . . 1 . . . . . . 4 . . 1 . . . . . Parts Restored . | . . . . . . . . . . . . . . . . . . . . . . . . . . . Kills | -11 -10 -10 -9 -9 -9 -9 -6 -6 -6 -6 -6 -6 -5 -5 -5 -5 -5 -4 -4 -4 -4 -4 -3 -3 -3 -2 ------- Run | Yrd Mat Min Mat Sto Rec Scr Fac Was Fac Low Low Dat Pro Fac Upp Upp War Pro Fac Upp Upp Zhi Pro Res Qua Res Combat Hostiles Destroyed 130 | . 10 7 20 24 . . 13 . 12 . 6 . 5 . 1 . . 4 6 8 2 . 1 8 2 1 Melee 8 | . . . . . . . 3 . 1 . 2 . 1 . . . . . . . 1 . . . . . Guns 62 | . 10 7 20 24 . . 1 . . . . . . . . . . . . . . . . . . . Cannons 6 | . . . . . . . 1 . 1 . . . . . 1 . . . 2 . . . . . . 1 AOE 42 | . . . . . . . 8 . 6 . 4 . 4 . . . . 3 . 8 . . 1 8 . . Classes Destroyed 18 | 2 4 . 4 . . . 4 . . . 1 . . . . . . 1 . . . . . 2 . . Worker 6 | . . . 1 1 . . 3 . . . . . . . . . . . . . . . . 1 . . Builder 2 | . . . . . . . . . . . . . . . . . . . . . . . . 2 . . Tunneler 3 | 2 . . 1 . . . . . . . . . . . . . . . . . . . . . . . Hauler 19 | . 1 . 4 6 . . 2 . 2 . . . . . . . . . 2 . . . . 1 1 . Recycler 12 | 1 2 . 2 2 . . 1 . 3 . . . . . . . . . . . . . . . . 1 Mechanic 3 | . . . 1 1 . . . . . . . . . . . . . . 1 . . . . . . . Operator 1 | . 1 . . . . . . . . . . . . . . . . . . . . . . . . . Drone 2 | . . . . . . . . . . . . . . . . . . 1 . . . . 1 . . . Watcher 12 | . . . . . . . 3 . . . . . . 1 . . . . 5 . . . . 1 2 . Swarmer 45 | . 6 5 8 3 . . 2 . 6 . . . . . . . . 2 . 8 . . . 5 . . Cutter 3 | . . . . . . . . . . . . . . . . . . . . . . . . 3 . . Grunt 41 | . 4 2 7 9 . . 5 . 3 . . . 5 . . . . 1 4 . . . . . 1 . Duelist 1 | . . . 1 . . . . . . . . . . . . . . . . . . . . . . . Sentry 17 | . . . 4 12 . . . . . . . . . . . . . . . . . . . . . 1 Specialist 2 | . . . . . . . 2 . . . . . . . . . . . . . . . . . . . Hunter 5 | . . . . . . . 2 . 1 . . . . . . . . . 1 . . . . . 1 . Programmer 9 | . . . . . . . 2 . 2 . 1 . . . 1 . . . 1 . 2 . . . . . Decomposer 1 | . . . . . . . . . . . . . 1 . . . . . . . . . . . . . Packrat 2 | . . . . . . . . . . . . . . . . 2 . . . . . . . . . . Surgeon 1 | . . . . . . . . . 1 . . . . . . . . . . . . . . . . . Thug 4 | . . . . . . . . . . . 4 . . . . . . . . . . . . . . . Mutant 1 | . . . . . . . . . . . 1 . . . . . . . . . . . . . . . Best Kill Streak 10 | 3 3 3 7 7 . . 5 . 4 . 2 . 5 1 1 . . 2 4 5 1 . 1 10 2 2 Combat Bots Only 8 | . 3 3 6 4 . . 5 . 4 . 2 . 5 . 1 . . 2 3 5 1 . 1 8 1 1 Max Kills in Single Turn 6 | 1 2 1 2 2 . . 2 . 3 . 1 . 2 1 1 1 . 2 1 3 1 . 1 6 1 1 Gunslinging 1 | . 1 . . . . . . . . . . . . . . . . . . . . . . . . . Exploded 5 | . . . . . . . 2 . 3 . 1 . 2 . . . . 2 . 3 . . 1 5 . . Melee 1 | . . . . . . . 1 . 1 . 1 . 1 . . . . . . . 1 . . . . . Uniques/NPCs Destroyed . | . . . . . . . . . . . . . . . . . . . . . . . . . . . Combat | -11 -10 -10 -9 -9 -9 -9 -6 -6 -6 -6 -6 -6 -5 -5 -5 -5 -5 -4 -4 -4 -4 -4 -3 -3 -3 -2 -------- Run | Yrd Mat Min Mat Sto Rec Scr Fac Was Fac Low Low Dat Pro Fac Upp Upp War Pro Fac Upp Upp Zhi Pro Res Qua Res Hostile Shots Fired 794 | . 56 24 55 115 9 . 152 . 75 . 13 . 15 . 8 . . 7 34 11 . . . 99 62 59 Missed 315 | . 11 9 17 35 2 . 72 . 29 . 5 . 7 . 3 . . 4 14 6 . . . 49 33 19 Hits 479 | . 45 15 38 80 7 . 80 . 46 . 8 . 8 . 5 . . 3 20 5 . . . 50 29 40 Melee 29 | . . . . . . . . . 2 . . . . . . . . . . . . . . 7 . 20 Projectile 450 | . 45 15 38 80 7 . 80 . 44 . 8 . 8 . 5 . . 3 20 5 . . . 43 29 20 AOE 1 | . . . . . . . 1 . . . . . . . . . . . . . . . . . . . Critical Strikes 31 | . . . 1 4 . . 2 . 2 . 1 . 2 . 1 . . . 1 . . . . 5 1 11 Damage Taken 9080 | . 479 140 408 1194 113 . 1503 . 937 . 136 . 149 . 99 . . 49 356 128 . . . 1443 791 1155 Core 1814 | . 106 41 71 132 10 . 240 . 142 . 13 . 37 . 20 . . . 59 23 . . . 470 142 308 Absorbed by Shields 28 | . . . . . . . . . . . . . . . . . . . 28 . . . . . . . Ignored by Resistances 15 | . . . 15 . . . . . . . . . . . . . . . . . . . . . . . Regen/Repaired (Parts) 1694 | . . . . 141 . 282 165 101 325 . . . . 97 . . 9 . 149 . . . . 71 58 296 Core Remaining (%) 68 | 100 . 41 . . . 46 . . . . . . 49 . . . . 98 . . . . 92 . 52 . Volleys Fired 412 | 6 40 20 72 100 9 . 31 . 26 10 38 . 8 3 5 2 . 3 10 7 1 4 2 9 4 2 Largest 2 | 2 2 2 2 2 2 . 2 . 1 1 1 . 1 1 1 1 . 1 1 1 1 1 1 1 1 1 Hottest 105 | 60 100 85 85 79 46 . 88 . 65 65 65 . 98 98 51 98 . 98 51 43 7 7 43 105 105 51 Shots Fired 658 | 12 79 36 142 198 18 . 38 . 26 10 39 . 8 3 5 2 . 3 10 7 1 4 2 9 4 2 Gun 492 | 12 78 36 142 198 18 . 8 . . . . . . . . . . . . . . . . . . . Cannon 106 | . . . . . . . 15 . 19 10 32 . 4 3 5 2 . 1 6 . . . . 3 4 2 Launcher 47 | . . . . . . . 15 . 7 . 7 . 4 . . . . 2 . 7 . . 2 3 . . Special 13 | . 1 . . . . . . . . . . . . . . . . . 4 . 1 4 . 3 . . Kinetic 352 | 6 39 20 70 176 18 . 8 . . . . . . . 5 . . . 6 . . . . . 2 2 Thermal 247 | 6 40 16 72 22 . . 15 . 19 10 32 . 4 3 . 2 . 1 . . . . . 3 2 . Explosive 47 | . . . . . . . 15 . 7 . 7 . 4 . . . . 2 . 7 . . 2 3 . . Electromagnetic . | . . . . . . . . . . . . . . . . . . . . . . . . . . . Robot Hit Streak 31 | 7 15 7 12 31 11 . 4 . 3 . . . 5 . 10 . . . 14 4 1 3 . 8 . 10 Robot Miss Streak 4 | 1 4 2 2 2 2 . 2 . 1 . . . . . . . . . 3 2 . 1 . . . . Penetration Max . | . . . . . . . . . . . . . . . . . . . . . . . . . . . Secondary Targets 6 | . 2 1 2 1 . . . . . . . . . . . . . . . . . . . . . . Max Gunslinging Chain 1 | . 1 1 1 1 . . . . . . . . . . . . . . . . . . . . . . Shots Hit Robots 501 | 9 51 22 102 153 16 . 35 . 31 . 6 . 5 2 5 3 . 1 28 1 4 6 1 9 8 3 Core Hits 263 | 4 24 13 39 56 5 . 40 . 19 . 10 . 11 1 1 1 . 5 4 9 . . 1 18 . 2 Critical Kills 5 | . . . . . . . 1 . . . . . . . 1 . . . 2 . . . . . . 1 Critical Parts Destroyed 29 | . . . . . 1 . . . 6 . 2 . . . 4 . . 1 7 . 1 . . 2 4 1 Critical Strikes 47 | . . 1 7 2 1 . 4 . 6 . 2 . . . 5 . . 1 9 . 1 . . 2 4 2 Burn 10 | . . 1 7 2 . . . . . . . . . . . . . . . . . . . . . . Destroy 8 | . . . . . . . . . . . . . . . 5 . . . 2 . . . . . . 1 Smash 26 | . . . . . 1 . 1 . 6 . 2 . . . . . . 1 7 . 1 . . 2 4 1 Sever 3 | . . . . . . . 3 . . . . . . . . . . . . . . . . . . . Melee Attacks 356 | . . . 1 13 3 . 63 . 102 4 11 . 8 16 . 10 . 8 39 10 8 3 1 12 38 6 Impact 274 | . . . 1 13 3 . 10 . 100 4 7 . . 1 . 10 . 8 39 10 8 3 1 12 38 6 Slashing 56 | . . . . . . . 53 . . . 3 . . . . . . . . . . . . . . . Piercing 24 | . . . . . . . . . . . 1 . 8 15 . . . . . . . . . . . . Sneak Attacks 34 | . . . . 1 . . 8 . 7 . 2 . 1 . . 2 . . 4 . 3 . . 2 3 1 Combat Hostiles 2 | . . . . . . . . . . . 2 . . . . . . . . . . . . . . . Follow-up Attacks . | . . . . . . . . . . . . . . . . . . . . . . . . . . . Damage Inflicted 20855 | 94 617 301 1579 2530 329 . 3204 . 3329 . 832 . 889 72 107 379 . 320 1830 713 397 405 165 1785 810 168 Guns 5258 | 92 601 279 1545 2402 238 . 101 . . . . . . . . . . . . . . . . . . . Cannons 256 | . . . . . . . 53 . . . . . . . 107 . . . 50 . . . . . 16 30 Explosions 6693 | . . . . . . . 1406 . 1816 . 380 . 727 . . . . 276 . 713 . . 37 1338 . . Melee 8538 | . . . . 105 78 . 1644 . 1513 . 452 . 162 72 . 379 . 44 1780 . 397 405 128 447 794 138 Ramming 110 | 2 16 22 34 23 13 . . . . . . . . . . . . . . . . . . . . . Kinetic 3814 | 28 254 139 723 2128 238 . 101 . . . . . . . 107 . . . 50 . . . . . 16 30 Thermal 2742 | 64 347 140 822 274 . . 53 . 874 . . . 168 . . . . . . . . . . . . . Explosive 5642 | . . . . . . . 1406 . 933 . 380 . 559 . . . . 276 . 713 . . 37 1338 . . Electromagnetic 9 | . . . . . . . . . 9 . . . . . . . . . . . . . . . . . Impact 6575 | . . . . 105 78 . 113 . 1513 . 254 . . . . 379 . 44 1780 . 397 405 128 447 794 138 Slashing 1729 | . . . . . . . 1531 . . . 198 . . . . . . . . . . . . . . . Piercing 234 | . . . . . . . . . . . . . 162 72 . . . . . . . . . . . . Highest Corruption 12 | . . . . 1 3 . 7 . 12 9 1 1 1 . . . . . . . . . . 3 5 . Average Corruption 2 | . . . . 1 2 . 4 . 6 4 1 1 1 . . . . . . . . . . 2 1 . Corruption Purged 21 | . . . . . . . 7 . 2 9 . . . . . . . . . . . . . . 3 . Corruption Blocked . | . . . . . . . . . . . . . . . . . . . . . . . . . . . Effects 105 | . . . . 13 22 . 25 . 13 9 9 . 4 . . . . . . . . . . 1 9 . Message Errors 27 | . . . . 3 4 . 5 . 5 4 2 . 2 . . . . . . . . . . . 2 . Matter Fused 26 | . . . . 4 7 . 6 . 3 1 2 . . . . . . . . . . . . . 3 . Heat Flow Errors 16 | . . . . 1 4 . 4 . 2 2 2 . . . . . . . . . . . . . 1 . Energy Discharges 12 | . . . . 1 3 . 4 . 1 1 1 . . . . . . . . . . . . . 1 . Parts Rejected 2 | . . . . 1 . . . . . . . . . . . . . . . . . . . 1 . . Parts Fused 1 | . . . . . . . 1 . . . . . . . . . . . . . . . . . . . Data Loss (minor) 13 | . . . . 2 2 . 5 . 1 1 . . 1 . . . . . . . . . . . 1 . Data Loss (major) 2 | . . . . . 1 . . . . . . . 1 . . . . . . . . . . . . . Misfires 1 | . . . . . . . . . . . 1 . . . . . . . . . . . . . . . Alerts 3 | . . . . . 1 . . . . . 1 . . . . . . . . . . . . . 1 . Misdirections 1 | . . . . . . . . . 1 . . . . . . . . . . . . . . . . . Weapon Failures 1 | . . . . 1 . . . . . . . . . . . . . . . . . . . . . . Overload Shots . | . . . . . . . . . . . . . . . . . . . . . . . . . . . Overflow Damage 4462 | . . . . . 78 . 319 . 753 . 172 . 58 4 . 233 . 44 898 63 282 242 118 445 615 138 Projectiles . | . . . . . . . . . . . . . . . . . . . . . . . . . . . Explosions 273 | . . . . . . . 46 . 97 . . . 1 . . . . . . 63 . . . 66 . . Melee 4189 | . . . . . 78 . 273 . 656 . 172 . 57 4 . 233 . 44 898 . 282 242 118 379 615 138 Knockbacks 32 | . . 1 1 1 . . . . 9 . 2 . . . 2 1 . . 7 . 2 . . 2 4 . Impact 29 | . . 1 1 1 . . . . 8 . 2 . . . . 1 . . 7 . 2 . . 2 4 . Kinetic 2 | . . . . . . . . . . . . . . . 2 . . . . . . . . . . . Secondary 1 | . . . . . . . . . 1 . . . . . . . . . . . . . . . . . Self-Inflicted Damage 340 | . . . . . . . 113 . . . . . . . . . . . . 45 . . . 182 . . Shots 7 | . . . . . . . 2 . . . . . . . . . . . . 2 . . . 3 . . Rammed 27 | 1 6 8 4 5 3 . . . . . . . . . . . . . . . . . . . . . Targets Rammed 28 | 1 6 8 5 5 3 . . . . . . . . . . . . . . . . . . . . . Kicked . | . . . . . . . . . . . . . . . . . . . . . . . . . . . Crushed 1 | . . . 1 . . . . . . . . . . . . . . . . . . . . . . . Highest Temperature 268 | 40 138 210 20 263 167 . 268 . 164 171 234 . 108 116 50 58 . 92 116 32 . . . 48 155 . Average Temperature 49 | 20 34 70 8 105 76 . 59 . 45 70 88 . 31 49 25 19 . 34 47 13 . . . 23 36 . Received Heat Transfer 1399 | . 171 36 111 447 15 . 195 . 207 . 9 . 54 . . . . 9 46 12 . . . 30 57 . Effects 2 | . . . . . . . 2 . . . . . . . . . . . . . . . . . . . Energy Bleed 2 | . . . . . . . 2 . . . . . . . . . . . . . . . . . . . Siege Activations . | . . . . . . . . . . . . . . . . . . . . . . . . . . . Martial Activations . | . . . . . . . . . . . . . . . . . . . . . . . . . . . Shielding Activations . | . . . . . . . . . . . . . . . . . . . . . . . . . . . Robots Disrupted . | . . . . . . . . . . . . . . . . . . . . . . . . . . . Combat Hostiles . | . . . . . . . . . . . . . . . . . . . . . . . . . . . Robots Corrupted 27 | . . . . . 1 . . . 8 . 1 . . . . 1 . 1 7 . . 1 . 3 4 . Combat Hostiles 12 | . . . . . . . . . 4 . 1 . . . . . . 1 3 . . 1 . . 2 . Parts Fried 31 | . . . . . 1 . . . 8 . . . . . . 1 . . 12 . . . . 3 5 1 Impact Corruptions 86 | . . . . . 1 . . . 25 . 5 . . . . 5 . 2 19 . 5 3 2 8 10 1 Robots Melted . | . . . . . . . . . . . . . . . . . . . . . . . . . . . Combat Hostiles . | . . . . . . . . . . . . . . . . . . . . . . . . . . . Parts Melted 6 | . 1 . 3 1 . . . . . . . . . . . . . . . . 1 . . . . . Heat Transferred 5486 | 150 775 397 2516 814 . . 74 . 600 . . . 160 . . . . . . . . . . . . . Parts Sabotaged . | . . . . . . . . . . . . . . . . . . . . . . . . . . . Parts Stolen . | . . . . . . . . . . . . . . . . . . . . . . . . . . . Parts Stripped . | . . . . . . . . . . . . . . . . . . . . . . . . . . . Power Chain Reactions 1 | . . . . . . . . . 1 . . . . . . . . . . . . . . . . . Alert | -11 -10 -10 -9 -9 -9 -9 -6 -6 -6 -6 -6 -6 -5 -5 -5 -5 -5 -4 -4 -4 -4 -4 -3 -3 -3 -2 ------- Run | Yrd Mat Min Mat Sto Rec Scr Fac Was Fac Low Low Dat Pro Fac Upp Upp War Pro Fac Upp Upp Zhi Pro Res Qua Res Maximum Alert Level 3 | . . . 1 1 1 . 1 . 3 . . . . . . . . . . . . . . 1 1 . Low Security (%) 72 | 100 100 100 69 51 59 . 56 100 77 . . . . 100 . . . . 100 . . . . 38 89 100 Level 1 25 | . . . 30 48 40 . 43 . 5 . . . . . . . . . . . . . . 61 10 . Level 2 1 | . . . . . . . . . 12 . . . . . . . . . . . . . . . . . Level 3 . | . . . . . . . . . 4 . . . . . . . . . . . . . . . . . Level 4 . | . . . . . . . . . . . . . . . . . . . . . . . . . . . Level 5 . | . . . . . . . . . . . . . . . . . . . . . . . . . . . High Security . | . . . . . . . . . . . . . . . . . . . . . . . . . . . Max Security . | . . . . . . . . . . . . . . . . . . . . . . . . . . . Peak Influence 727 | 15 188 80 314 392 255 . 372 105 727 . . . . 32 . . . . 90 . . . . 307 209 115 Initial 300 | . . 70 24 114 138 . . 66 33 . . . . . . . . . . . . . . 300 156 103 Average 136 | 2 77 19 108 229 185 . 179 76 155 . . . . 5 . . . . 36 . . . . 214 132 68 Influence Increases 7593 | 15 359 242 635 839 393 . 1301 62 1362 . 80 . 110 89 30 20 . 211 266 225 50 5 10 751 437 101 Destroy 0b10 Robot/C 2900 | . 200 180 420 480 100 . 340 . 320 . 20 . 100 . 20 . . 140 120 160 40 . . 200 40 20 Destroy 0b10 Robot/NC 350 | 15 20 . 50 50 10 . 45 . 30 . 5 . . 5 . 5 . 10 40 . . 5 10 30 15 5 Destroy Leader 686 | . 42 40 90 182 . . 90 . 64 . 10 . 10 2 10 . . 20 34 20 10 . . 46 6 10 Allied During Kill 211 | . . 7 4 . 65 . 47 . 41 . . . . . . . . 41 3 . . . . 3 . . Trap Triggered on 0b10 50 | . . . 10 . . . . . 40 . . . . . . . . . . . . . . . . . Successful Hack 526 | . 6 . 26 44 43 . 80 . 128 . . . . 37 . . . . 48 . . . . 38 64 12 Select Force Hacks 230 | . 30 . . . 150 . . . 50 . . . . . . . . . . . . . . . . . Disable Machine 525 | . 15 . 15 75 . . 120 . 195 . . . . . . . . . . . . . . 30 75 . Destroy Structure 525 | . 1 . 5 8 25 . 159 47 119 . . . . 30 . . . . 6 . . . . 74 42 9 Advance Influence 300 | . . . . . . . . . . . . . . . . . . . . . . . . 300 . . Partial Spotted 180 | . 15 . . . . . 60 15 30 . . . . 15 . . . . . . . . . 15 30 . Lose Combat Pursuer 1110 | . 30 15 15 . . . 360 . 345 . 45 . . . . 15 . . 15 45 . . . 15 165 45 Influence Decreases 7593 | 15 179 360 425 757 656 91 1110 205 686 483 321 . 110 87 32 20 . 211 266 105 170 5 10 472 531 286 Entered New Map 1299 | . . 110 38 158 216 91 . 125 15 269 47 . . . 2 . . . . . 23 . . . 123 82 Time Decay 4984 | 15 179 250 377 559 440 . 480 80 491 214 264 . 100 87 30 20 . 171 236 105 147 5 10 222 368 134 Search Patrol Dispatched 200 | . . . . . . . 100 . . . . . . . . . . . . . . . . 100 . . Lost Part 430 | . . . 10 40 . . 90 . 70 . 10 . 10 . . . . . . . . . . 100 30 70 Lost Ally 380 | . . . . . . . 140 . 110 . . . . . . . . 40 30 . . . . 50 10 . Purge Threat 300 | . . . . . . . 300 . . . . . . . . . . . . . . . . . . . Squads Dispatched 74 | . 2 . 2 4 . . 20 . 13 . . . . 5 . . . . 8 . . . . 10 5 5 Investigation 43 | . 1 . . 3 . . 11 . 8 . . . . 4 . . . . 5 . . . . 4 4 3 Extermination 15 | . . . . . . . 4 . 4 . . . . 1 . . . . 2 . . . . 2 1 1 Reinforcement 14 | . 1 . 2 1 . . 5 . . . . . . . . . . . 1 . . . . 3 . 1 Assault 1 | . . . . . . . . . 1 . . . . . . . . . . . . . . . . . Garrison 1 | . . . . . . . . . . . . . . . . . . . . . . . . 1 . . Intercept . | . . . . . . . . . . . . . . . . . . . . . . . . . . . Searches Triggered 2 | . . . . . . . 1 . . . . . . . . . . . . . . . . 1 . . Unchained Authorized 3 | . . . . . . . . . . . . . . 1 1 1 . . . . . . . . . . Data Miner Redirects 1 | . . . . . . . . . . . . . . . . . . . . . . . . 1 . . Construction Impeded 3 | . . . . . . . 2 . . . . . . . . . . . . . . . . 1 . . Haulers Reinforced 2 | . . . . . . . 1 . . . . . . . . . . . 1 . . . . . . . Active Scanning Responses . | . . . . . . . . . . . . . . . . . . . . . . . . . . . Cargo Convoy Interrupts . | . . . . . . . . . . . . . . . . . . . . . . . . . . . Stealth | -11 -10 -10 -9 -9 -9 -9 -6 -6 -6 -6 -6 -6 -5 -5 -5 -5 -5 -4 -4 -4 -4 -4 -3 -3 -3 -2 --------- Run | Yrd Mat Min Mat Sto Rec Scr Fac Was Fac Low Low Dat Pro Fac Upp Upp War Pro Fac Upp Upp Zhi Pro Res Qua Res Distress Signals 11 | . 1 . 3 2 . . 2 . . . . . . . . . . . . . . . . 2 . 1 Communications Jammed 31 | . . . . . . . . . . . . . . . . . . 2 18 . . . . 11 . . Distress Signals 29 | . . . . . . . . . . . . . . . . . . . 18 . . . . 11 . . Times Spotted 307 | . 21 9 32 36 5 . 42 2 43 . 6 . 8 1 1 2 . 7 15 8 2 . 1 30 20 16 Peak Tracking Total 16 | . 5 3 6 4 2 . 8 2 14 . 4 . 4 1 1 1 . 3 3 2 1 . 1 16 7 16 Tactical Retreats 43 | . 2 1 1 . . . 13 . 11 . 2 . . . . 1 . . 1 2 . . . 4 3 2 ECM-based Alert Blocks 11 | . . . . . . . 1 . 3 . . . . . . . . . . . . . . 7 . . Traps | -11 -10 -10 -9 -9 -9 -9 -6 -6 -6 -6 -6 -6 -5 -5 -5 -5 -5 -4 -4 -4 -4 -4 -3 -3 -3 -2 ------- Run | Yrd Mat Min Mat Sto Rec Scr Fac Was Fac Low Low Dat Pro Fac Upp Upp War Pro Fac Upp Upp Zhi Pro Res Qua Res Traps Triggered 11 | . . . . 3 . . 5 . . . . . . . . . . . 1 . . . . . 2 . Indirectly . | . . . . . . . . . . . . . . . . . . . . . . . . . . . Trap Hack Attempts 29 | . . . . . . . . . 29 . . . . . . . . . . . . . . . . . Triggered . | . . . . . . . . . . . . . . . . . . . . . . . . . . . Disarmed . | . . . . . . . . . . . . . . . . . . . . . . . . . . . Reprogrammed 13 | . . . 3 6 . . . . 4 . . . . . . . . . . . . . . . . . Reused 11 | . . . 1 . . . . . 4 . . . . . . . . . . . 6 . . . . . Traps Extracted 15 | . . . . . . . . . 5 . 2 . . . . . 2 . . 4 2 . . . . . Installed 15 | . . . . . . . . . 5 . . . . . . . . . . 2 8 . . . . . Triggered 11 | . . . 1 . . . . . 4 . . . . . . . . . . . 6 . . . . . Most Traps Carried 6 | . . . . . . . . . 4 . 2 2 2 2 2 2 4 4 4 6 6 . . . . . Machines | -11 -10 -10 -9 -9 -9 -9 -6 -6 -6 -6 -6 -6 -5 -5 -5 -5 -5 -4 -4 -4 -4 -4 -3 -3 -3 -2 ---------- Run | Yrd Mat Min Mat Sto Rec Scr Fac Was Fac Low Low Dat Pro Fac Upp Upp War Pro Fac Upp Upp Zhi Pro Res Qua Res Machines Disabled 38 | . 1 . 1 5 . . 8 . 13 . . . 2 . . . . . . . 1 . . 2 5 . Max in Single Turn 5 | . 1 . 1 1 . . 5 . 5 . . . 2 . . . . . . . 1 . . 1 1 . Garrison Access 7 | . . . . 1 . . 2 . 1 . . . . 1 . . . . . . . . . 1 1 . Machines Repaired . | . . . . . . . . . . . . . . . . . . . . . . . . . . . Machines Dismantled . | . . . . . . . . . . . . . . . . . . . . . . . . . . . Machines Sabotaged . | . . . . . . . . . . . . . . . . . . . . . . . . . . . Overloaded Fab Kills 3 | . . . . . . . . . 3 . . . . . . . . . . . . . . . . . Hacking | -11 -10 -10 -9 -9 -9 -9 -6 -6 -6 -6 -6 -6 -5 -5 -5 -5 -5 -4 -4 -4 -4 -4 -3 -3 -3 -2 --------- Run | Yrd Mat Min Mat Sto Rec Scr Fac Was Fac Low Low Dat Pro Fac Upp Upp War Pro Fac Upp Upp Zhi Pro Res Qua Res Machines Accessed 158 | . 3 . 9 15 11 2 30 . 21 . 1 3 1 13 1 . . . 14 1 1 4 . 12 11 5 Terminals 68 | . 1 . 7 11 6 . 11 . 7 . . . 1 6 . . . . 6 . . . . 5 7 . Fabricators 10 | . . . . . . . 3 . 4 . . . . 2 . . . . 1 . . . . . . . Repair Stations 17 | . 1 . . 2 . . 2 . 3 . . . . 1 . . . . 1 . . . . 2 2 3 Recycling Units 31 | . 1 . . 1 5 . 8 . 4 . . . . 3 . . . . 5 . . . . 3 . 1 Scanalyzers 9 | . . . 2 . . . 2 . 2 . . . . . . . . . 1 . . . . 1 1 . Garrison Access 10 | . . . . 1 . . 4 . 1 . . . . 1 . . . . . . . . . 1 1 1 Total Hacks 473 | . 7 . 28 40 30 10 86 . 70 . 1 21 2 34 1 . . . 45 1 1 17 . 32 28 19 Successful 300 | . 3 . 17 16 19 10 55 . 48 . 1 21 2 24 1 . . . 24 1 1 17 . 15 15 10 Failed 172 | . 4 . 11 24 11 . 30 . 22 . . . . 10 . . . . 21 . . . . 17 13 9 Catastrophic 23 | . . . 1 6 1 . 4 . 2 . . . . 1 . . . . 2 . . . . 3 1 2 Database Lockouts 1 | . . . . . . . 1 . . . . . . . . . . . . . . . . . . . Manual 189 | . 4 . 16 12 21 . 35 . 21 . . . . 19 . . 1 . 24 . . . . 18 12 6 Terminals 205 | . 3 . 22 27 17 . 40 . 21 . . . 2 17 . . . . 23 . . . . 17 16 . Fabricators 28 | . . . . . . . 8 . 13 . . . . 4 . . . . 3 . . . . . . . Repair Stations 59 | . 2 . . 6 . . 6 . 14 . . . . 4 . . . . 2 . . . . 5 7 13 Recycling Units 78 | . 2 . . 4 13 . 19 . 9 . . . . 7 . . . . 15 . . . . 6 . 3 Scanalyzers 31 | . . . 6 . . . 6 . 11 . . . . . . . . . 2 . . . . 3 3 . Garrison Access 20 | . . . . 3 . . 7 . 2 . . . . 2 . . . . . . . . . 1 2 3 Terminal Hacks 121 | . 1 . 10 8 3 10 15 . 11 . 1 21 2 7 1 . . . 6 1 1 17 . 3 3 . Record 16 | . . . . . . 3 . . . . . 6 2 . . . . . . . . 5 . . . . Part Schematic 16 | . . . . . . . 2 . 1 . . 8 . . . . . . . . . 4 . . 1 . Robot Schematic 5 | . . . . 1 . . . . . . . 4 . . . . . . . . . . . . . . Robot Analysis 17 | . 1 . 3 . 1 7 1 . . . . . . . . . . . . . . 4 . . . . Prototype ID Bank 11 | . . . 1 1 . . 1 . 1 . . 3 . . . . . . . . . 4 . . . . Open Door 7 | . . . . 3 . . . . . . 1 . . . 1 . . . . 1 1 . . . . . Branch Access Points 6 | . . . 1 . . . 1 . 1 . . . . 1 . . . . 1 . . . . 1 . . Machine Index 1 | . . . . . . . . . 1 . . . . . . . . . . . . . . . . . Terminal Index 2 | . . . . 1 1 . . . . . . . . . . . . . . . . . . . . . Garrison Index 1 | . . . . . . . 1 . . . . . . . . . . . . . . . . . . . Unreport Threat 2 | . . . . . . . 2 . . . . . . . . . . . . . . . . . . . Locate Traps 11 | . . . 2 1 . . 1 . 4 . . . . 1 . . . . 1 . . . . 1 . . Reprogram Traps 2 | . . . 1 1 . . . . . . . . . . . . . . . . . . . . . . Transport Status 1 | . . . 1 . . . . . . . . . . . . . . . . . . . . . . . Recall Investigation 4 | . . . . . . . . . . . . . . 4 . . . . . . . . . . . . Recall Extermination 5 | . . . . . . . 1 . 1 . . . . . . . . . 1 . . . . 1 1 . Hauler Manifests 2 | . . . 1 . . . . . . . . . . . . . . . 1 . . . . . . . Registered Components 3 | . . . . . . . 1 . . . . . . 1 . . . . 1 . . . . . . . Registered Prototypes 3 | . . . . . . . 1 . 1 . . . . . . . . . 1 . . . . . . . Zone Layout 6 | . . . . . 1 . 3 . 1 . . . . . . . . . . . . . . . 1 . Fabricator Hacks 11 | . . . . . . . 4 . 5 . . . . 1 . . . . 1 . . . . . . . Network Status 4 | . . . . . . . 1 . 2 . . . . . . . . . 1 . . . . . . . Load Schematic 5 | . . . . . . . 2 . 2 . . . . 1 . . . . . . . . . . . . Build 2 | . . . . . . . 1 . 1 . . . . . . . . . . . . . . . . . Repair Station Hacks 41 | . . . . 3 . . 6 . 9 . . . . 4 . . . . 2 . . . . 4 3 10 Scan Component 23 | . . . . 2 . . 3 . 5 . . . . 2 . . . . 1 . . . . 3 2 5 Repair 16 | . . . . 1 . . 3 . 4 . . . . 2 . . . . 1 . . . . 1 . 4 Refit 2 | . . . . . . . . . . . . . . . . . . . . . . . . . 1 1 Recycling Unit Hacks 22 | . 1 . . 3 3 . 6 . 3 . . . . 3 . . . . 3 . . . . . . . Process 1 | . . . . 1 . . . . . . . . . . . . . . . . . . . . . . Report Inventory 1 | . . . . 1 . . . . . . . . . . . . . . . . . . . . . . Retrieve Matter 1 | . . . . 1 . . . . . . . . . . . . . . . . . . . . . . Retrieve Components 19 | . 1 . . . 3 . 6 . 3 . . . . 3 . . . . 3 . . . . . . . Scanalyzer 24 | . . . 5 . . . 5 . 7 . . . . . . . . . 2 . . . . 3 2 . Insert Component 6 | . . . 1 . . . 2 . 3 . . . . . . . . . . . . . . . . . Analyze 8 | . . . 1 . . . 3 . 4 . . . . . . . . . . . . . . . . . Retrieve Study 10 | . . . 3 . . . . . . . . . . . . . . . 2 . . . . 3 2 . Garrison Access Hacks 7 | . . . . 1 . . 2 . 1 . . . . 1 . . . . . . . . . 1 1 . Seal Access 7 | . . . . 1 . . 2 . 1 . . . . 1 . . . . . . . . . 1 1 . Unauthorized Hacks 74 | . 1 . 2 1 13 . 17 . 12 . . . . 8 . . . . 10 . . . . 4 6 . Terminals 31 | . . . 2 . 6 . 6 . 2 . . . . 3 . . . . 5 . . . . 2 5 . Track 5 | . . . 1 . . . 1 . . . . . . . . . . . 1 . . . . . 2 . Assimilate 4 | . . . . . . . 1 . . . . . . . . . . . 1 . . . . 1 1 . Botnet 11 | . . . 1 . 1 . 2 . 1 . . . . 2 . . . . 2 . . . . 1 1 . Disrupt 3 | . . . . . . . 1 . 1 . . . . . . . . . . . . . . . 1 . Operators 3 | . . . . . . . 1 . . . . . . 1 . . . . 1 . . . . . . . Skim 5 | . . . . . 5 . . . . . . . . . . . . . . . . . . . . . Fabricators 11 | . . . . . . . 3 . 6 . . . . 2 . . . . . . . . . . . . Prioritize 1 | . . . . . . . . . 1 . . . . . . . . . . . . . . . . . Liberate 4 | . . . . . . . 2 . 2 . . . . . . . . . . . . . . . . . Haulers 3 | . . . . . . . 1 . 1 . . . . 1 . . . . . . . . . . . . Overload 1 | . . . . . . . . . 1 . . . . . . . . . . . . . . . . . Recompile 2 | . . . . . . . . . 1 . . . . 1 . . . . . . . . . . . . Repair Stations 2 | . . . . . . . . . 1 . . . . . . . . . . . . . . . 1 . Patch 2 | . . . . . . . . . 1 . . . . . . . . . . . . . . . 1 . Recycling Units 30 | . 1 . . 1 7 . 8 . 3 . . . . 3 . . . . 5 . . . . 2 . . Reject 2 | . . . . 1 1 . . . . . . . . . . . . . . . . . . . . . Mask 1 | . . . . . 1 . . . . . . . . . . . . . . . . . . . . . Tunnel 6 | . 1 . . . 5 . . . . . . . . . . . . . . . . . . . . . Fedlink 21 | . . . . . . . 8 . 3 . . . . 3 . . . . 5 . . . . 2 . . Scanalyzers . | . . . . . . . . . . . . . . . . . . . . . . . . . . . Garrison Access . | . . . . . . . . . . . . . . . . . . . . . . . . . . . Data Cores Recovered . | . . . . . . . . . . . . . . . . . . . . . . . . . . . Used . | . . . . . . . . . . . . . . . . . . . . . . . . . . . Hacking Detections 105 | . 2 . 8 11 8 . 22 . 15 . . . . 7 . . . . 11 . . . . 10 7 4 Full Trace Events 16 | . . . . 4 . . 3 . 2 . . . . . . . . . . . . . . 2 2 3 Feedback Events 1 | . . . . . . . 1 . . . . . . . . . . . . . . . . . . . Corruption 1 | . . . . . . . 1 . . . . . . . . . . . . . . . . . . . Feedback Blocked . | . . . . . . . . . . . . . . . . . . . . . . . . . . . Robot Schematics Acquired 5 | . . . . 1 . . . . . . . 4 . . . . . . . . . . . . . . Robots Built . | . . . . . . . . . . . . . . . . . . . . . . . . . . . Authchips . | . . . . . . . . . . . . . . . . . . . . . . . . . . . Time . | . . . . . . . . . . . . . . . . . . . . . . . . . . . Total Robot Build Rating . | . . . . . . . . . . . . . . . . . . . . . . . . . . . Part Schematics Acquired 21 | . . . 1 . . . 4 . 3 . . 8 . . . . . . . . . 4 . . 1 . Parts Built 3 | . . . . . . . 2 . 1 . . . . . . . . . . . . . . . . . Authchips 1 | . . . . . . . . . 1 . . . . . . . . . . . . . . . . . Time 139 | . . . . . . . 117 . 22 . . . . . . . . . . . . . . . . . Total Part Build Rating 18 | . . . . . . . 14 . 4 . . . . . . . . . . . . . . . . . Part Studies Acquired 9 | . . . 2 . . . . . . . . . . . . . . . 2 . . . . 3 2 . Parts Repaired 16 | . . . . 1 . . 3 . 4 . . . . 2 . . . . 1 . . . . 1 . 4 Time 641 | . . . . 32 . . 79 . 185 . . . . 118 . . . . 32 . . . . 22 . 173 Parts Recycled . | . . . . . . . . . . . . . . . . . . . . . . . . . . . Recycled Matter 203 | . . . . 203 . . . . . . . . . . . . . . . . . . . . . . Retrieved Matter 218 | . . . . 218 . . . . . . . . . . . . . . . . . . . . . . Retrieved Components 68 | . 10 . . . 14 . 16 . 11 . . . . 6 . . . . 11 . . . . . . . Parts Scanalyzed 6 | . . . 1 . . . 2 . 3 . . . . . . . . . . . . . . . . . Part Schematics Acquired 5 | . . . 1 . . . 2 . 2 . . . . . . . . . . . . . . . . . Parts Damaged . | . . . . . . . . . . . . . . . . . . . . . . . . . . . Bothacking | -11 -10 -10 -9 -9 -9 -9 -6 -6 -6 -6 -6 -6 -5 -5 -5 -5 -5 -4 -4 -4 -4 -4 -3 -3 -3 -2 ------------ Run | Yrd Mat Min Mat Sto Rec Scr Fac Was Fac Low Low Dat Pro Fac Upp Upp War Pro Fac Upp Upp Zhi Pro Res Qua Res Used RIF Installer . | . . . . . . . . . . . . . . . . . . . . . . . . . . . Robots Hacked 11 | . . . . . . . . . 2 . . . . . . . . . 3 . . 3 . 3 . . Non-combat 4 | . . . . . . . . . 1 . . . . . . . . . 2 . . . . 1 . . Combat 4 | . . . . . . . . . 1 . . . . . . . . . . . . 3 . . . . Robot Hacks Applied 8 | . . . . . . . . . 2 . . . . . . . . . 2 . . 3 . 1 . . parse_system 5 | . . . . . . . . . 1 . . . . . . . . . 1 . . 3 . . . . find_chute 1 | . . . . . . . . . . . . . . . . . . . 1 . . . . . . . find_recycling 2 | . . . . . . . . . 1 . . . . . . . . . . . . . . 1 . . Manual 3 | . . . . . . . . . . . . . . . . . . . 1 . . . . 2 . . Relay Couplers Released 2 | . . . . . . . 2 . . . . . . . . . . . . . . . . . . . Machine Destruction 2 | . . . . . . . 2 . . . . . . . . . . . . . . . . . . . Fabnet Peak Effective % . | . . . . . . . . . . . . . . . . . . . . . . . . . . . Robots Rewired 11 | . . . . . 5 . . . . . . . . . . . 5 . . . 1 . . . . . Allies Hacked . | . . . . . . . . . . . . . . . . . . . . . . . . . . . Hacks Repelled 1 | . . . . . . . . . 1 . . . . . . . . . . . . . . . . . Allies | -11 -10 -10 -9 -9 -9 -9 -6 -6 -6 -6 -6 -6 -5 -5 -5 -5 -5 -4 -4 -4 -4 -4 -3 -3 -3 -2 -------- Run | Yrd Mat Min Mat Sto Rec Scr Fac Was Fac Low Low Dat Pro Fac Upp Upp War Pro Fac Upp Upp Zhi Pro Res Qua Res Total Allies 50 | . . 2 . 10 5 . 1 18 3 . . . . . . . 5 . 1 . 1 . . 3 1 . Largest Group 18 | . . 2 1 10 15 15 15 18 5 . . . . . . . 5 5 3 . 1 1 1 1 1 . Highest-Rated Group 656 | . . 41 31 88 197 197 197 656 125 . . . . . . . 256 256 169 . 49 49 49 116 26 . Highest-Rated Ally 116 | . . 31 31 16 34 34 34 50 29 . . . . . . . 64 64 64 . 49 49 49 116 26 . Total Orders 11 | . . . . . . 4 . . . . . . . . . . . 2 . . 1 2 2 . . . STAY 7 | . . . . . . 4 . . . . . . . . . . . 1 . . . 1 1 . . . FOLLOW 4 | . . . . . . . . . . . . . . . . . . 1 . . 1 1 1 . . . Ally Attacks 242 | . . 4 10 . 15 . 25 105 45 . . . . . . . . 25 4 . . . 3 6 . . Total Damage 6269 | . . 42 127 . 190 . 552 3560 595 . . . . . . . . 652 179 . . . 49 323 . . Kills 36 | . . 2 2 . 5 . 4 9 5 . . . . . . . . 5 . . . . 1 3 . . Allies Corrupted 2 | . . . 1 . . . . . . . . . . . . . . . . . . . . 1 . . Allies Melted . | . . . . . . . . . . . . . . . . . . . . . . . . . . . Intel | -11 -10 -10 -9 -9 -9 -9 -6 -6 -6 -6 -6 -6 -5 -5 -5 -5 -5 -4 -4 -4 -4 -4 -3 -3 -3 -2 ------- Run | Yrd Mat Min Mat Sto Rec Scr Fac Was Fac Low Low Dat Pro Fac Upp Upp War Pro Fac Upp Upp Zhi Pro Res Qua Res Active Infowar (turns) 10990 | . . . . . . . 1495 146 1316 452 941 26 243 431 246 608 285 718 618 488 888 83 455 438 850 263 Sensors 10534 | . . . . . . . 1460 144 1254 452 941 26 243 429 224 608 284 658 472 435 870 80 455 386 850 263 Machine Analysis 18 | . . . . . . . . . . . . . . . . . . . 18 . . . . . . . Jamming 3273 | . . . . . . . . 2 . . . . . 2 22 . 1 167 512 488 573 83 455 363 359 246 ECM 217 | . . . . . . . 35 . 62 . . . . . . . . . . . . . . 120 . . Robot Analysis Total 17 | . 1 . 3 . 1 7 1 . . . . . . . . . . . . . . 4 . . . . Derelict Logs Recovered 10 | . . 1 . . . . . . . 1 1 . . . 2 1 . 2 . . 2 . . . . . Drone Launches . | . . . . . . . . . . . . . . . . . . . . . . . . . . . Drone Recoveries . | . . . . . . . . . . . . . . . . . . . . . . . . . . . Exploration | -11 -10 -10 -9 -9 -9 -9 -6 -6 -6 -6 -6 -6 -5 -5 -5 -5 -5 -4 -4 -4 -4 -4 -3 -3 -3 -2 ------------- Run | Yrd Mat Min Mat Sto Rec Scr Fac Was Fac Low Low Dat Pro Fac Upp Upp War Pro Fac Upp Upp Zhi Pro Res Qua Res Turns Passed 20264 | 110 441 958 1886 1640 1091 2065 2053 178 1630 453 977 26 308 436 246 608 302 718 618 488 888 83 455 476 850 280 Spaces Moved 21922 | 49 160 543 950 664 533 1227 2609 333 2432 572 1568 76 436 822 398 502 506 1165 1224 762 1116 162 789 851 1143 330 Core 3 | 3 . . . . . . . . . . . . . . . . . . . . . . . . . . Treads 3764 | 46 160 543 950 664 533 847 21 . . . . . . . . . . . . . . . . . . . Legs . | . . . . . . . . . . . . . . . . . . . . . . . . . . . Wheels 616 | . . . . . . 380 236 . . . . . . . . . . . . . . . . . . . Hover . | . . . . . . . . . . . . . . . . . . . . . . . . . . . Flight 17539 | . . . . . . . 2352 333 2432 572 1568 76 436 822 398 502 506 1165 1224 762 1116 162 789 851 1143 330 Fastest Speed 19 | 50 160 160 160 160 160 155 28 28 23 31 31 31 29 31 31 27 31 31 27 32 32 32 32 25 19 22 Average Speed 57 | 153 160 160 160 160 160 160 41 30 30 44 31 31 32 32 31 30 31 31 31 32 32 32 32 31 34 61 Slowest Speed 320 | 160 160 160 160 160 160 240 320 104 104 104 104 31 34 34 31 31 107 31 32 32 32 32 32 33 105 175 Overloaded Moves 222 | . . . . . . . . . 9 . . . 9 . . 22 . . 8 . . . . 110 37 27 Propulsion Burnouts . | . . . . . . . . . . . . . . . . . . . . . . . . . . . Robots Hopped 51 | . . . . . . . 9 . 16 . . . 1 6 . . 3 1 1 . 1 . . 6 6 1 Potential Cave-ins 1 | . . . . . . . . . . . . . . . . . . . . . . . . . 1 . Cave-ins Triggered 2 | . . . . . . . . . 1 . . . . . . . . . . . . . . . 1 . Exploration Rate (%) 64 | 4 33 98 60 95 94 84 54 91 44 70 95 68 55 22 53 79 78 94 31 78 88 60 87 28 90 10 Regions Visited 26 Branch Regions 17 Pre-discovered Areas 15 | . 1 . . . 8 . 1 . . . . 1 . . . 1 . . . . . 3 . . . . Known Exits Taken 19 | . . . 1 . 1 . . . 1 1 1 1 1 1 1 1 1 1 1 1 1 1 1 1 1 . Unknown Exits Taken 5 | 1 1 1 . 1 . 1 . . . . . . . . . . . . . . . . . . . . Scrap Searched 34 | . . 2 . . . 11 . . . 2 4 . 1 . 1 1 . 1 . 3 4 . 4 . . . Spaces Dug 338 | . . . . 5 2 . 83 . 55 9 14 . 23 16 . 8 . 25 2 12 4 . 33 20 24 3 Terrain Destroyed 721 | . . . . 5 2 . 163 . 117 10 80 . 72 16 . 8 . 44 2 101 4 . 33 37 24 3 Melee 164 | . . . . 5 2 . 34 . 46 4 4 . 5 13 . 6 . 6 2 . 4 . . 8 22 3 Projectile 47 | . . . . . . . 7 . 9 6 10 . 4 3 . 2 . 1 . . . . . 3 2 . AOE 510 | . . . . . . . 122 . 62 . 66 . 63 . . . . 37 . 101 . . 33 26 . . Terrain Rammed . | . . . . . . . . . . . . . . . . . . . . . . . . . . . Walls Destroyed . | . . . . . . . . . . . . . . . . . . . . . . . . . . . Machines Disabled . | . . . . . . . . . . . . . . . . . . . . . . . . . . . Actions | -11 -10 -10 -9 -9 -9 -9 -6 -6 -6 -6 -6 -6 -5 -5 -5 -5 -5 -4 -4 -4 -4 -4 -3 -3 -3 -2 --------- Run | Yrd Mat Min Mat Sto Rec Scr Fac Was Fac Low Low Dat Pro Fac Upp Upp War Pro Fac Upp Upp Zhi Pro Res Qua Res Total 28103 | 70 261 593 1177 1010 746 1325 3410 408 3080 752 1993 77 575 943 512 930 644 1494 1385 973 1630 185 985 1022 1531 392 Wait 4612 | 1 43 8 78 187 112 79 598 56 422 159 348 . 113 85 106 413 92 304 81 172 491 . 190 129 311 34 Move 21796 | 49 159 542 949 663 532 1226 2591 332 2399 571 1567 75 433 809 397 501 499 1162 1221 761 1113 161 788 838 1130 328 Hop 51 | . . . . . . . 9 . 16 . . . 1 6 . . 3 1 1 . 1 . . 6 6 1 Pick Up 98 | 8 3 3 25 6 1 4 17 2 7 1 1 . . 3 . . . . 2 . 1 2 . 5 6 1 Fast Attach 127 | 6 2 2 7 5 . 3 14 6 12 1 7 1 . 6 1 . 8 2 11 2 . 4 1 6 12 8 Attach 54 | . . 1 1 3 . 1 19 2 6 2 3 . 3 2 . . . . 1 . . 1 . 2 5 2 Detach 41 | . . . 2 1 . 1 8 . 7 1 5 . 3 3 . . 1 . 4 . . 2 . . 3 . Swap 216 | . 3 3 12 17 3 5 25 3 41 3 7 . 5 6 3 4 5 12 9 17 6 4 2 11 7 3 Drop 145 | . 5 6 25 10 3 6 20 7 8 . 6 1 1 4 . . 7 2 6 2 1 4 1 4 9 7 Fire 412 | 6 40 20 72 100 9 . 31 . 26 10 38 . 8 3 5 2 . 3 10 7 1 4 2 9 4 2 Melee 356 | . . . 1 13 3 . 63 . 102 4 11 . 8 16 . 10 . 8 39 10 8 3 1 12 38 6 Ram . | . . . . . . . . . . . . . . . . . . . . . . . . . . . Kick . | . . . . . . . . . . . . . . . . . . . . . . . . . . . Crush 27 | . 6 8 5 5 3 . . . . . . . . . . . . . . . . . . . . . Escape Stasis 15 | . . . . . . . 15 . . . . . . . . . . . . . . . . . . . Rewire 109 | . . . . . 80 . . . . . . . . . . . 29 . . . . . . . . . Trap 44 | . . . . . . . . . 34 . . . . . . . . . . 2 8 . . . . . Miscellaneous . | . . . . . . . . . . . . . . . . . . . . . . . . . . . Route ------- -11/Scrapyard -10/Materials (discovered 2 exits: [*Min x2]) -10/Mines (discovered 2 exits: *Mat x2) -9/Materials (discovered 3 exits: *Mat / *Min / *Sto) -9/Storage (discovered 2 exits: *Mat / *Rec) -9/Recycling (discovered 2 exits: [*Fac] / *Scr) -9/Scraptown (discovered 2 exits: *Fac x2) -6/Factory (discovered 4 exits: *Fac x2 / *Low x2) -6/Waste -6/Factory (discovered 4 exits: *Fac x2 / *Low x2) -6/Lower Caves -6/Lower Caves (discovered 2 exits: *Fac / *Dat) -6/Data Miner -5/Proximity Caves -5/Factory (discovered 5 exits: Fac / *Upp x2 / *Ext x2) -5/Upper Caves -5/Upper Caves -5/Warlord -4/Proximity Caves -4/Factory (discovered 3 exits: *Upp x2 / Arm) -4/Upper Caves -4/Upper Caves -4/Zhirov -3/Proximity Caves -3/Research (discovered 2 exits: *Qua x2) -3/Quarantine -2/Research History --------- Turn | Location | Event 2 | -11/Scrapyard | Met Revision 17 8 | -11/Scrapyard | Discovered new exit (range 15) 111 | -11/Scrapyard | Entered Materials 298 | -10/Materials | Discovered new exit (range 15) 308 | -10/Materials | Build established: Mutant 324 | -10/Materials | Discovered new exit (range 16) 552 | -10/Materials | Entered Mines 562 | -10/Mines | Met a Derelict bent on vengeance 617 | -10/Mines | Discovered new exit (range 5) 673 | -10/Mines | Discovered new exit (range 6) 1162 | -10/Mines | Core integrity fell below 50% 1272 | -10/Mines | Learned location of 1 exit from Materials 1510 | -10/Mines | Entered Materials 1510 | -9/Materials | Accompanied by 1 ally 1510 | -9/Materials | Evolved 2 slots: Propulsion x1, Utility x1 1511 | -9/Materials | Identified exit to Materials 1515 | -9/Materials | Led the pair of lost Derelicts to an unsafe place 1567 | -9/Materials | Identified exit to Mines 1567 | -9/Materials | Identified exit to Storage 1790 | -9/Materials | Build established: Scavenger-Mutant 3007 | -9/Materials | Build established: Mutant 3396 | -9/Materials | Entered Storage 4534 | -9/Storage | Discovered exit to Materials (range 16) 4567 | -9/Storage | Core integrity fell below 50% 4653 | -9/Storage | Repaired Imp. Treads 4960 | -9/Storage | Assisted by bots powering up and referring to "LRC-V3" 5001 | -9/Storage | Used back door to open Recycling access 5001 | -9/Storage | Discovered new exit (range 5) 5036 | -9/Storage | Entered Recycling 5036 | -9/Recycling | Accompanied by 10 allies 5037 | -9/Recycling | Met a Zionite searching for Scraptown 5264 | -9/Recycling | Build established: Commander-Mutant 5490 | -9/Recycling | Discovered new exit (range 15) 5611 | -9/Recycling | Learned location of Zion (-7) 5667 | -9/Recycling | Learned Materials stockpile data 5712 | -9/Recycling | Learned location of Storage (-9) 5747 | -9/Recycling | Learned Storage stockpile data 5771 | -9/Recycling | Identified exit to Scraptown 5811 | -9/Recycling | Learned 2 Storage zone layouts 5893 | -9/Recycling | Learned location of 1 exit from Storage 6033 | -9/Recycling | Scanned before Scraplab entrance 6071 | -9/Recycling | Entered Scraplab 6127 | -9/Recycling | Entered Scraptown 6127 | -9/Scraptown | Accompanied by 15 allies 6127 | -9/Scraptown | System corruption cleaned by C-Scrubber 6390 | -9/Scraptown | Heard Great Nut preacher, LISTEN AND RECITE! 6539 | -9/Scraptown | Discovered new exit (range 11) 6590 | -9/Scraptown | Visited The Evicted 6606 | -9/Scraptown | Visited Cyclists 6691 | -9/Scraptown | Visited Bundlers 6804 | -9/Scraptown | Visited Awakened 6858 | -9/Scraptown | Visited Artisan Demo Area 6868 | -9/Scraptown | Visited Assassins FH 6877 | -9/Scraptown | Visited CR-KLE's Repair Center 6903 | -9/Scraptown | Visited UFD Registry 6903 | -9/Scraptown | Registered with UFD as "Alphaslicer" 6938 | -9/Scraptown | Visited Abandonware Association 6960 | -9/Scraptown | Learned abandonware demo "REVENGE.EXE" 7024 | -9/Scraptown | Visited Analyses Database 7063 | -9/Scraptown | Visited DA-N13 Charitable Foundation 7069 | -9/Scraptown | Found DCF Scrap (31 items) 7133 | -9/Scraptown | Visited Research Penetration Think Tank 7164 | -9/Scraptown | Visited Scrapoid Research Area 7186 | -9/Scraptown | Visited Scrap Suit Storage 7210 | -9/Scraptown | Visited Curators Association 7373 | -9/Scraptown | Visited Observation Area 7396 | -9/Scraptown | Visited Chapter 10 7619 | -9/Scraptown | Discovered new exit (range 3) 7863 | -9/Scraptown | CR-KLE repaired 9 parts 8104 | -9/Scraptown | Met Optimus 8104 | -9/Scraptown | Accepted into 0bPrime 8192 | -9/Scraptown | Entered Factory 8192 | -6/Factory | Accompanied by 15 allies 8192 | -6/Factory | Evolved 6 slots: Power x1, Propulsion x2, Utility x3 8306 | -6/Factory | Loaded intel: 8 recycling unit locations 8392 | -6/Factory | Lost 5 allies 8600 | -6/Factory | Identified exit to Lower Caves 8762 | -6/Factory | Lost 8 allies 8859 | -6/Factory | Lost 6 parts (1p3n2u) 8905 | -6/Factory | Learned location of Protoforge (-2) 8966 | -6/Factory | Repaired Mni. Grenade Launcher 9112 | -6/Factory | Build established: Hacker-Sprinter 9140 | -6/Factory | Discovered new exit (range 15) 9261 | -6/Factory | Central database locked down 9322 | -6/Factory | Spotted B-75 Beast 9467 | -6/Factory | Discovered new exit (range 15) 9474 | -6/Factory | Identified exit to Factory 9592 | -6/Factory | Search patrols dispatched 9646 | -6/Factory | Fabricated Lrn. Sensor Array? 10172 | -6/Factory | Repaired Imp. Flight Unit 10195 | -6/Factory | Repaired Greatsword 10245 | -6/Factory | Manually triggered Chute Trap 10245 | -6/Factory | Sucked down chute 10245 | -6/Factory | Entered Waste 10249 | -6/Waste | Spotted C-40 Crusher 10251 | -6/Waste | Spotted C-40 Crusher 10259 | -6/Waste | Spotted C-40 Crusher 10264 | -6/Waste | Warlord forces began an assault 10286 | -6/Waste | Allies destroyed C-40 Crusher 10291 | -6/Waste | Spotted C-40 Crusher 10316 | -6/Waste | Lost 3 allies 10320 | -6/Waste | Spotted C-40 Crusher 10400 | -6/Waste | Discovered new exit (range 13) 10407 | -6/Waste | Identified exit to Factory 10423 | -6/Waste | Entered Factory 10423 | -6/Factory | Accompanied by 5 allies 10515 | -6/Factory | Lost 3 allies 10520 | -6/Factory | Repaired Imp. Light Armor Plating 10735 | -6/Factory | P-60 Hacker assimilated allied HH-LES(m) 10776 | -6/Factory | Loaded intel: 8 recycling unit locations 10876 | -6/Factory | Discovered exit to Factory (range 9) 10961 | -6/Factory | Lost 3 allies 11326 | -6/Factory | Discovered exit to Factory (range 8) 11535 | -6/Factory | Repaired Impulse Thruster Array 11540 | -6/Factory | Fabricated Cld. VTOL Module? 11596 | -6/Factory | Repaired Lgt. Neutrino Core? 11823 | -6/Factory | First assault squad dispatched 11840 | -6/Factory | Repaired Lrn. Missile Launcher? 11888 | -6/Factory | Crushed by falling debris 11888 | -6/Factory | System corruption reached 10% 12053 | -6/Factory | Entered Lower Caves 12084 | -6/Lower Caves | Learned location of 1 exit from Factory 12268 | -6/Lower Caves | Encountered a Warlord checkpoint 12302 | -6/Lower Caves | Discovered new exit (range 10) 12506 | -6/Lower Caves | Identified exit to Lower Caves 12506 | -6/Lower Caves | Entered another Lower Caves area 12507 | -6/Lower Caves | Encountered a Warlord checkpoint 12516 | -6/Lower Caves | Discovered exit to Factory (range 8) 12523 | -6/Lower Caves | Learned Factory machine intel 13100 | -6/Lower Caves | Discovered new exit (range 13) 13124 | -6/Lower Caves | Identified exit to Data Miner 13483 | -6/Lower Caves | Entered Data Miner 13483 | -6/Data Miner | Discovered new exit (range 6) 13485 | -6/Data Miner | Identified exit to Proximity Caves 13490 | -6/Data Miner | Met Data Miner 13496 | -6/Data Miner | Learned location of Section 7 (-2) 13496 | -6/Data Miner | Acquired the access code to Warlord's prototype stash 13500 | -6/Data Miner | Received God Mode back door access code from Data Miner 13509 | -6/Data Miner | Entered Proximity Caves 13763 | -5/Proximity Caves | Core integrity fell below 50% 13812 | -5/Proximity Caves | Discovered exit to Factory (range 11) 13817 | -5/Proximity Caves | Entered Factory 13817 | -5/Factory | Evolved 2 slots: Propulsion x1, Utility x1 13818 | -5/Factory | Identified exit to Factory 13819 | -5/Factory | Loaded intel: 318 machine locations 13900 | -5/Factory | Loaded intel: 8 recycling unit locations 13928 | -5/Factory | Build established: Hacker-Mutant 13930 | -5/Factory | Identified exit to Upper Caves 13930 | -5/Factory | Identified exit to Extension 14072 | -5/Factory | Repaired Impulse Thruster Array 14123 | -5/Factory | Repaired Nuclear Pulse Thruster 14237 | -5/Factory | Unchained authorized (DW-4LL) 14253 | -5/Factory | Entered Upper Caves 14293 | -5/Upper Caves | Identified exit to Upper Caves 14429 | -5/Upper Caves | Build established: Hacker-Sprinter 14467 | -5/Upper Caves | Unchained authorized (DW-4LL) 14499 | -5/Upper Caves | Entered another Upper Caves area 14501 | -5/Upper Caves | Attracted the attention of an 0b10 checkpoint 14552 | -5/Upper Caves | Encountered a Warlord checkpoint 14632 | -5/Upper Caves | Learned location of Armory (-4) 14661 | -5/Upper Caves | Unchained authorized (DW-4LL) 14675 | -5/Upper Caves | Discovered new exit (range 5) 14676 | -5/Upper Caves | Identified exit to Warlord 15100 | -5/Upper Caves | DW-4LL burst out of a wall 15107 | -5/Upper Caves | Entered Warlord 15187 | -5/Warlord | Opened Warlord's prototype stash 15190 | -5/Warlord | Found Prototype Reactor 15190 | -5/Warlord | Identified Vortex Chain Reactor 15198 | -5/Warlord | Found Prototype Device 15198 | -5/Warlord | Identified System Purifier 15335 | -5/Warlord | Discovered new exit (range 12) 15353 | -5/Warlord | Identified exit to Proximity Caves 15409 | -5/Warlord | Entered Proximity Caves 15409 | -4/Proximity Caves | Accompanied by 5 allies 15525 | -4/Proximity Caves | Learned Research emergency access door positions 15536 | -4/Proximity Caves | Learned Research terminal intel 15829 | -4/Proximity Caves | Received a Behemoth hack from an annoying Tinkerer 15963 | -4/Proximity Caves | Discovered exit to Factory (range 3) 16127 | -4/Proximity Caves | Entered Factory 16127 | -4/Factory | Accompanied by 3 allies 16127 | -4/Factory | Evolved 2 slots: Utility x2 16277 | -4/Factory | Identified exit to Upper Caves 16277 | -4/Factory | Identified exit to Armory 16278 | -4/Factory | Loaded intel: 8 recycling unit locations 16475 | -4/Factory | Repaired Hrd. Light Armor Plating 16745 | -4/Factory | Entered Upper Caves 17185 | -4/Upper Caves | Discovered new exit (range 15) 17190 | -4/Upper Caves | Identified exit to Upper Caves 17233 | -4/Upper Caves | Entered another Upper Caves area 17238 | -4/Upper Caves | Learned Research garrison access intel 17843 | -4/Upper Caves | Found Alien Artifact 17865 | -4/Upper Caves | Learned 4 Research zone layouts 17939 | -4/Upper Caves | Discovered new exit (range 6) 17969 | -4/Upper Caves | Encountered a Warlord checkpoint 18018 | -4/Upper Caves | Identified exit to Zhirov 18121 | -4/Upper Caves | Entered Zhirov 18121 | -4/Zhirov | Accompanied by 1 ally 18121 | -4/Zhirov | Discovered new exit (range 4) 18127 | -4/Zhirov | Met Zhirov 18139 | -4/Zhirov | Learned location of Quarantine (-3) 18139 | -4/Zhirov | Learned location of Testing (-2) 18141 | -4/Zhirov | Zhirov requested help retrieving the SGEMP Prototype 18147 | -4/Zhirov | Found Alien Artifact 18147 | -4/Zhirov | Identified Integrated Dissipator 18147 | -4/Zhirov | Installed Integrated Dissipator, increased core heat dissipation (+20) 18181 | -4/Zhirov | Found Alien Artifact 18200 | -4/Zhirov | Identified exit to Proximity Caves 18204 | -4/Zhirov | Entered Proximity Caves 18204 | -3/Proximity Caves | Accompanied by 1 ally 18206 | -3/Proximity Caves | Spotter reported a threat 18207 | -3/Proximity Caves | Spotter reported a threat 18641 | -3/Proximity Caves | Discovered new exit (range 8) 18644 | -3/Proximity Caves | Identified exit to Research 18659 | -3/Proximity Caves | Entered Research 18659 | -3/Research | Evolved 2 slots: Propulsion x1, Utility x1 18662 | -3/Research | Loaded intel: 25 terminal locations 18663 | -3/Research | Loaded intel: 3 garrison access locations 18749 | -3/Research | Identified exit to Quarantine 18828 | -3/Research | Repaired Impulse Thruster Array 18909 | -3/Research | Search patrols dispatched 18976 | -3/Research | Spotted B-86 Titan 18979 | -3/Research | Befriended a Behemoth using the annoying Tinkerer's hack 18982 | -3/Research | Loaded intel: 5 recycling unit locations 19013 | -3/Research | Garrison activated, responded to threat 19099 | -3/Research | Spotted B-86 Titan 19101 | -3/Research | Befriended a Behemoth using the annoying Tinkerer's hack 19120 | -3/Research | Destroyed 8 combat bots 19123 | -3/Research | Incoming investigation squad redirected 19132 | -3/Research | Lost 10 parts (2p6u2w) 19135 | -3/Research | Entered Quarantine 19218 | -3/Quarantine | Spotted Alpha 7 19527 | -3/Quarantine | Found Alien Artifact 19528 | -3/Quarantine | Identified Subatomic Replicator 19528 | -3/Quarantine | Used Subatomic Replicator to create Alien Artifact 19563 | -3/Quarantine | Found Alien Artifact 19608 | -3/Quarantine | Cryocooling Duct disabled 19623 | -3/Quarantine | Ambient heat levels rising (+20) 19623 | -3/Quarantine | Non-combat units ordered to evacuate 19664 | -3/Quarantine | Cryocooling Duct disabled 19679 | -3/Quarantine | Ambient heat levels rising (+20) 19679 | -3/Quarantine | Combat units ordered to evacuate 19779 | -3/Quarantine | Quarantine Guard activated 19855 | -3/Quarantine | Spotted Quarantine Guard 19855 | -3/Quarantine | Discovered new exit (range 9) 19923 | -3/Quarantine | Spotted Quarantine Guard 19929 | -3/Quarantine | Crushed by falling debris 19932 | -3/Quarantine | Spotted Quarantine Guard 19961 | -3/Quarantine | Spotted Quarantine Guard 19984 | -3/Quarantine | Identified exit to Research 19985 | -3/Quarantine | Entered Research 19985 | -2/Research | Evolved 2 slots: Power x1, Propulsion x1 20022 | -2/Research | Repaired Impulse Thruster Array+ 20073 | -2/Research | Repaired Cld. Field Propulsion Drive? 20096 | -2/Research | Repaired Field Propulsion Array? 20115 | -2/Research | Repaired Adv. Cooling System 20265 | -2/Research | Self-destructed Last Messages --------------- 20254_ Antigrav Array destroyed. 20256_ Penetrated by Slug. 20256_ K-01 Serf suffers critical hit (Destroy). 20257_ Impulse Thruster Array+ destroyed. 20259_ Slug penetrates K-01 Serf. 20259_ K-01 Serf destroyed. 20259_ Slug penetrates Wall. 20260_ Backup Power III destroyed. 20261_ Dropped Adv. Energy Well. 20262_ Extracted 51 energy. 20262_ Dropped Matter Neutralizer. 20262_ Penetrated by Slug. 20262_ Imp. System Shield destroyed. 20262_ Penetrated by Slug. 20262_ Transmission Jammer destroyed. 20262_ Penetrated by Slug. 20262_ Dropped Med. Storage Unit. 20263_ Extracted 6 energy. 20264_ Critical hit (Destroy). 20264_ Antigrav Array destroyed. Map ----- +----------------------------------------------------+ | ?????????????????????????????????????????????????? | | ?????????????????????????????????????????????????? | | ?????????????????????????????????????????????????? | | ????????????????????? ???????????????????????????? | | ????????????????????# ???????????????????????????? | | ???????????????????? ???????????????????????????? | | ???????????????????# ???????????????????????????? | | ???????????????????# #??????? ?????????????????? | | ???????????????????# #??????? ?????????????????? | | ???????????????????# #??????? ?????????????????? | | ???????????????????#= ######## #????????????????? | | ???????????????????#%=# # #??##############? | | ???????????????????#! # # #??# #? | | ???????????????????# # "" # #??# #? | | ???????????????????# # "" # #??#"" * """ #? | | ???????????????????# # "Y # #??#"" """ #? | | ???????????????????# # "" # #??#"" """ #? | | ???????????????????# + "" # #??#G #? | | ???????????????????# # # #??#"" #? | | ???????????????????# # # #??#"" """ #? | | ???????????????????# # # #??#"" = """ #? | | ???????????????????# # #= #??# !* """ #? | | ???????????????????# # # #??# #? | | ???????????????????#! # ] #/ #??# #? | | ??????????????????##!k######## ########+#+####### | | ??????????????????# @c g g + | | ??????????????????# = ^ # | | ??????????????????# ^ # " | | ??????????????????# + " | | ??????????????????# s # | | ??????????????????#sss # | | ??????????????????# ###### | | ????????????????? ###### | | ???????????????? # | | ??????????????? ^ # | | ?????????????? # "" | | ?????????????? ########## # ""R | | ?????????????? !*! #????????# # "" | | ??????????????? !*! #????????# # | | ?????????????????] ** #????????# # | | ??????????????????? ?????????# # """ | | ???????????????????????????????????????# # """ | | ???????????????????????????????????????+ # """ | | ???????????????????????????????????????# # | | ???????????????????????????????????????# #! | | ???????????????????????????????????????# #####+ | | ????????????????????????????????????????? | | ?????????????????????????????????????????? | | ??????????????????????????????????????????? | | ??????????????????????????????????????????? | +----------------------------------------------------+ Best States ------------- Heat Dissipation 100 Energy Generation 38 Energy Capacity 700 Matter Stores 300 Matter Capacity 300 Sight Range 16 Robot Scan Range 18 Terrain Scan Density 85 ECM Strength 1 Jamming Range 16 Armor Coverage 375 Resistance: TH 10 Evasion (%) 75 Targeting Accuracy 8 Melee Accuracy 8 Core Analysis 6 Recoil Reduction 3 Offensive Hacking 48 Defensive Hacking 12 Authchip Count 1 Trap Extractor Capacity 6 Item Schematics ----------------- Imp. Flight Unit | -9/Materials | Scanalyzed Cld. VTOL Module | -6/Factory | Hacked Lrn. Sensor Array | -6/Factory | Hacked Lrn. Missile Launcher | -6/Factory | Scanalyzed Imp. Hacking Suite | -6/Factory | Scanalyzed Lrn. Terrain Scanner | -6/Factory | Hacked Impulse Thruster Array | -6/Factory | Scanalyzed Lgt. Neutrino Core | -6/Factory | Scanalyzed Combat Drone Bay | -6/Data Miner | Free Lgt. Regenerative Plating | -6/Data Miner | Free Cld. Nuclear Pulse Thruster | -6/Data Miner | Free Imp. Thermal Defense Suite | -6/Data Miner | Free Tiamat Missile Launcher | -6/Data Miner | Free Imp. Antigrav System | -6/Data Miner | Free Imp. Force Field | -6/Data Miner | Free Hvy. Gauss Cannon | -6/Data Miner | Free Assault Drone Bay | -4/Zhirov | Free Exp. Heat Sink | -4/Zhirov | Free Exp. Optical Array | -4/Zhirov | Free Imp. Arc Thrower | -4/Zhirov | Free Cmb. Antigrav System | -3/Quarantine | Hacked Robot Schematics ------------------ L-31 Rogue | -9/Storage | Hacked Y-54 Guardian | -6/Data Miner | Free B-48 Gladiator | -6/Data Miner | Free G-50 Soldier | -6/Data Miner | Free R-10 Processor | -6/Data Miner | Free Fabricated ------------ Lrn. Sensor Array | x2 | -6/Factory Cld. VTOL Module | x1 | -6/Factory | Authchip Repaired ---------- Imp. Treads | 9% | -9/Storage Mni. Grenade Launcher | 54% | -6/Factory Imp. Flight Unit | 17% | -6/Factory Greatsword | 22% | -6/Factory Imp. Light Armor Plating | 47% | -6/Factory Impulse Thruster Array | 50% | -6/Factory Lgt. Neutrino Core | 50% | -6/Factory Lrn. Missile Launcher | 18% | -6/Factory Impulse Thruster Array | 46% | -5/Factory Nuclear Pulse Thruster | 26% | -5/Factory Hrd. Light Armor Plating | 17% | -4/Factory Impulse Thruster Array | 49% | -3/Research Impulse Thruster Array | 3% | -2/Research Cld. Field Propulsion Drive | 37% | -2/Research Field Propulsion Array | 57% | -2/Research Adv. Cooling System | 42% | -2/Research Studied --------- Hvy. Assault Rifle | -9/Materials | Hacked Beam Rifle | -9/Materials | Hacked Mic. Fission Core | -4/Factory | Hacked Nuclear Pulse Array | -4/Factory | Hacked Impulse Thruster Array | -3/Research | Hacked Micro-nuke Launcher | -3/Research | Hacked Hyp. Gauss Cannon | -3/Research | Hacked Mic. Antimatter Reactor | -3/Quarantine | Hacked Imp. Thunder Leg | -3/Quarantine | Hacked Alien Tech Used ----------------- Integrated Dissipator Subatomic Replicator Achievements -------------- No Room For Error You Again Challenges ------------ None Game ------ Seed ContainmentShiftThrower Manual? 0 Play Time 03:26:59 Cumulative 1999.4 hours Start 2025.10.24 @ 02:08:58 End 2025.10.25 @ 00:40:54 Sessions 3 Manual Loads 0 Difficulty Rogue Special Mode None Game No. 1307 Rogue 1303 Adventurer 4 Explorer 0 Win Type - Total 268 Types 201/12/21/10/3/1/4/9/5/2 Lore% 98 Gallery% 96 Achievement% 83 Wizard Run 0 Options --------- Layout 2 ASCII 0 Keyboard 1 Movement Vi Keybinds 0 Fullscreen 0 Font 24/Terminus Map View 59x48 Zoom Use 0% Tactical HUD 1 Map Filters NONE Filters NONE Steam 1 RUN: 1689c6a3-1292-464a-8d3c-b5c3988eeeb7